fUST/lending_fUST_20250802
["ID","MTS","AMOUNT","RATE_DAILY","PERIOD"]
[376664345,1754077845926,-460.0,0.00020279,2]
[376664347,1754077845936,-460.0,0.00020279,2]
[376664349,1754077845946,-460.0,0.00020279,2]
[376664351,1754077845956,-460.0,0.00020279,2]
[376664353,1754077845966,-460.0,0.00020279,2]
[376664355,1754077845976,-460.0,0.0002028,2]
[376664357,1754077845986,-460.0,0.0002028,2]
[376664359,1754077845997,-460.0,0.0002028,2]
[376664363,1754077846034,-460.0,0.0002028,2]
[376664365,1754077846045,-460.0,0.0002028,2]
[376664367,1754077846055,-460.0,0.0002028,2]
[376664369,1754077846066,-460.0,0.0002028,2]
[376664371,1754077846075,-460.0,0.0002028,2]
[376664373,1754077846085,-460.0,0.0002028,2]
[376664375,1754077846095,-434.87,0.0002028,2]
[376664377,1754077846105,-460.0,0.0002028,2]
[376664379,1754077846115,-460.0,0.0002028,2]
[376664382,1754077846126,-460.0,0.0002028,2]
[376664384,1754077846138,-392.61491274,0.0002028,2]
[376664385,1754077846147,-460.0,0.0002028,2]
[376664387,1754077846157,-460.0,0.0002028,2]
[376664389,1754077846167,-460.0,0.0002028,2]
[376664391,1754077846177,-460.0,0.0002028,2]
[376664393,1754077846186,-460.0,0.0002028,2]
[376664395,1754077846196,-460.0,0.0002028,2]
[376664397,1754077846206,-1665.74,0.0002028,2]
[376664399,1754077846216,-325.03572269,0.00020281,2]
[376664401,1754077846226,-460.0,0.00020281,2]
[376664403,1754077846235,-460.0,0.00020281,2]
[376664406,1754077846247,-460.0,0.00020281,2]
[376664407,1754077846257,-460.0,0.00020281,2]
[376664409,1754077846267,-292.53,0.00020281,2]
[376664412,1754077846278,-460.0,0.00020281,2]
[376664413,1754077846289,-460.0,0.00020281,2]
[376664415,1754077846300,-187.71,0.00020281,2]
[376664418,1754077846310,-460.0,0.00020281,2]
[376664420,1754077846320,-460.0,0.00020281,2]
[376664422,1754077846331,-1210.85,0.00020281,2]
[376664424,1754077846340,-460.0,0.00020281,2]
[376664425,1754077846351,-1665.74,0.00020281,2]
[376664428,1754077846362,-460.0,0.00020281,2]
[376664429,1754077846373,-1265.33,0.00020281,2]
[376664431,1754077846383,-850.72878382,0.00020316,2]
[376664434,1754077846392,-500.0,0.00020321,2]
[376664436,1754077846402,-1000.0,0.00020321,2]
[376664437,1754077846412,-280.75501179,0.00020321,2]
[376664440,1754077846422,-3046.86910581,0.00020452,3]
[376664443,1754077846433,-376.95717434,0.00020457,2]
[376664446,1754077846444,-1304.85528206,0.00020481,2]
[376664449,1754077846454,-470.2,0.00020551,2]
[376664452,1754077846463,-375.29,0.00020552,2]
[376664453,1754077846474,-460.0,0.00020552,2]
[376664456,1754077846484,-460.0,0.00020552,2]
[376664457,1754077846495,-460.0,0.00020552,2]
[376664460,1754077846507,-692.48,0.00020552,2]
[376664461,1754077846517,-460.0,0.00020552,2]
[376664463,1754077846527,-470.96614373,0.00020552,2]
[376664466,1754077846537,-460.0,0.00020552,2]
[376664468,1754077846548,-618.71,0.00020552,2]
[376664470,1754077846560,-275.43,0.00020552,2]
[376664472,1754077846570,-460.0,0.00020552,2]
[376664473,1754077846580,-1217.92,0.00020553,2]
[376664475,1754077846590,-460.0,0.00020553,2]
[376664478,1754077846600,-460.0,0.00020553,2]
[376664479,1754077846611,-460.0,0.00020553,2]
[376664481,1754077846621,-460.0,0.00020553,2]
[376664484,1754077846631,-460.0,0.00020553,2]
[376664486,1754077846641,-460.0,0.00020553,2]
[376664487,1754077846650,-460.0,0.00020553,2]
[376664489,1754077846660,-460.0,0.00020553,2]
[376664491,1754077846671,-460.0,0.00020553,2]
[376664493,1754077846682,-490.78,0.00020553,2]
[376664495,1754077846692,-219.37,0.00020553,2]
[376664497,1754077846702,-460.0,0.00020553,2]
[376664499,1754077846713,-460.0,0.00020553,2]
[376664501,1754077846723,-460.0,0.00020553,2]
[376664503,1754077846732,-460.0,0.00020553,2]
[376664505,1754077846743,-460.0,0.00020553,2]
[376664508,1754077846763,-460.0,0.00020554,2]
[376664511,1754077846778,-460.0,0.00020554,2]
[376664513,1754077846789,-460.0,0.00020554,2]
[376664515,1754077846801,-460.0,0.00020554,2]
[376664517,1754077846812,-460.0,0.00020554,2]
[376664519,1754077846826,-460.0,0.00020554,2]
[376664521,1754077846837,-460.0,0.00020554,2]
[376664523,1754077846848,-460.0,0.00020554,2]
[376664525,1754077846858,-460.0,0.00020554,2]
[376664527,1754077846869,-167.34,0.00020554,2]
[376664529,1754077846879,-466.81932942,0.00020554,2]
[376664531,1754077846890,-280.37,0.00020554,2]
[376664533,1754077846900,-460.0,0.00020554,2]
[376664535,1754077846912,-227.33,0.00020554,2]
[376664537,1754077846923,-460.0,0.00020554,2]
[376664539,1754077846934,-1665.74,0.00020554,2]
[376664542,1754077846946,-250.11557024,0.00020555,2]
[376664544,1754077846956,-461.28,0.00020555,2]
[376664546,1754077846967,-460.0,0.00020555,2]
[376664548,1754077846978,-460.0,0.00020555,2]
[376664550,1754077846987,-1210.85,0.00020555,2]
[376664552,1754077846998,-460.0,0.00020555,2]
[376664554,1754077847009,-1265.33,0.00020555,2]
[376664556,1754077847021,-1000.0,0.00020621,2]
[376664558,1754077847032,-638.40224091,0.00020621,2]
[376664560,1754077847044,-1000.0,0.00020621,2]
[376664562,1754077847055,-850.72878382,0.00020659,2]
[376664565,1754077847067,-160.0,0.00020728,3]
[376664567,1754077847078,-3046.86910581,0.00020728,3]
[376664569,1754077847087,-260.0,0.00020802,2]
[376664571,1754077847096,-2761.02,0.00020818,3]
[376664573,1754077847106,-1380.5,0.00020818,3]
[376664575,1754077847115,-690.26,0.00020818,3]
[376664577,1754077847125,-345.12,0.00020818,3]
[376664579,1754077847134,-309.6882809,0.00020821,2]
[376664581,1754077847144,-1000.0,0.00020821,2]
[376664583,1754077847153,-470.2,0.00020825,2]
[376664585,1754077847163,-460.0,0.00020826,2]
[376664587,1754077847172,-460.0,0.00020826,2]
[376664589,1754077847181,-460.0,0.00020826,2]
[376664591,1754077847191,-692.48,0.00020826,2]
[376664593,1754077847200,-385.67780496,0.00020826,2]
[376664595,1754077847210,-463.69239888,0.00020826,2]
[376664597,1754077847219,-618.71,0.00020826,2]
[376664599,1754077847228,-460.0,0.00020826,2]
[376664601,1754077847238,-1217.92,0.00020827,2]
[376664603,1754077847247,-460.0,0.00020827,2]
[376664605,1754077847258,-460.0,0.00020827,2]
[376664607,1754077847268,-460.0,0.00020827,2]
[376664609,1754077847279,-460.0,0.00020827,2]
[376664611,1754077847289,-460.0,0.00020827,2]
[376664613,1754077847298,-460.0,0.00020827,2]
[376664615,1754077847308,-460.0,0.00020827,2]
[376664617,1754077847317,-460.0,0.00020827,2]
[376664619,1754077847327,-490.78,0.00020827,2]
[376664621,1754077847337,-460.0,0.00020827,2]
[376664623,1754077847347,-460.0,0.00020827,2]
[376664625,1754077847359,-460.0,0.00020827,2]
[376664628,1754077847369,-460.0,0.00020827,2]
[376664630,1754077847379,-460.0,0.00020828,2]
[376664632,1754077847389,-460.0,0.00020828,2]
[376664634,1754077847399,-460.0,0.00020828,2]
[376664636,1754077847415,-460.0,0.00020828,2]
[376664638,1754077847425,-460.0,0.00020828,2]
[376664640,1754077847435,-460.0,0.00020828,2]
[376664642,1754077847445,-460.0,0.00020828,2]
[376664644,1754077847456,-460.0,0.00020828,2]
[376664646,1754077847466,-392.78,0.00020828,2]
[376664648,1754077847476,-460.0,0.00020828,2]
[376664650,1754077847485,-1665.74,0.00020828,2]
[376664652,1754077847495,-460.0,0.00020829,2]
[376664654,1754077847508,-460.0,0.00020829,2]
[376664656,1754077847518,-1210.85,0.00020829,2]
[376664659,1754077847529,-575.78,0.00020829,2]
[376664661,1754077847538,-1265.33,0.00020829,2]
[376664663,1754077847548,-1665.74,0.00020831,2]
[376664665,1754077847557,-460.0,0.00020832,2]
[376664667,1754077847567,-718.44,0.00020832,2]
[376664669,1754077847576,-460.0,0.00020832,2]
[376664671,1754077847587,-460.0,0.00020832,2]
[376664673,1754077847596,-486.24,0.00020832,2]
[376664675,1754077847606,-12644.26590849,0.00020992,3]
[376664677,1754077847616,-1665.74,0.00020999,2]
[376664679,1754077847625,-1665.74,0.00020999,2]
[376664681,1754077847635,-1665.74,0.00020999,2]
[376664683,1754077847645,-850.72878382,0.00021002,2]
[376664685,1754077847654,-367266.85304435,0.00021003,2]
[376664699,1754077847778,-513.52713082,0.00019456,2]
[376664701,1754077847788,-181.14318076,0.00019456,2]
[376664703,1754077847801,-500.0,0.00019456,2]
[376664705,1754077847811,-2733.14695565,0.00021003,2]
[376664707,1754077847820,-3046.86910581,0.00021003,4]
[376664709,1754077847830,-356.09599935,0.00021073,2]
[376664711,1754077847839,-470.2,0.00021099,2]
[376664713,1754077847849,-460.0,0.000211,2]
[376664715,1754077847858,-460.0,0.000211,2]
[376664718,1754077847869,-460.0,0.000211,2]
[376664719,1754077847879,-692.48,0.000211,2]
[376664721,1754077847889,-618.71,0.000211,2]
[376664723,1754077847899,-460.0,0.000211,2]
[376664726,1754077847908,-1217.92,0.00021101,2]
[376664728,1754077847917,-460.0,0.00021101,2]
[376664730,1754077847927,-460.0,0.00021101,2]
[376664732,1754077847936,-460.0,0.00021101,2]
[376664734,1754077847946,-460.0,0.00021101,2]
[376664736,1754077847955,-460.0,0.00021101,2]
[376664738,1754077847965,-460.0,0.00021101,2]
[376664740,1754077847975,-460.0,0.00021101,2]
[376664742,1754077847985,-460.0,0.00021101,2]
[376664744,1754077847995,-490.78,0.00021101,2]
[376664746,1754077848010,-1665.74,0.00021101,2]
[376664748,1754077848020,-1665.74,0.00021101,2]
[376664750,1754077848030,-1665.74,0.00021101,2]
[376664752,1754077848040,-1377.89362761,0.00021101,2]
[376664773,1754077848223,-486.49632528,0.00019456,2]
[376664775,1754077848233,-460.0,0.00019456,2]
[376664777,1754077848244,-460.0,0.0001973,2]
[376664779,1754077848258,-460.0,0.00019731,2]
[376664781,1754077848268,-460.0,0.00020003,2]
[376664783,1754077848278,-460.0,0.00020004,2]
[376664786,1754077848288,-460.0,0.00020005,2]
[376664788,1754077848299,-460.0,0.00020277,2]
[376664790,1754077848308,-365.52911703,0.00020278,2]
[376664792,1754077848320,-94.47088297,0.00020278,2]
[376664794,1754077848330,-189.37911703,0.00020279,2]
[376664817,1754077848543,-460.0,0.00019455,2]
[376664819,1754077848552,-460.0,0.00019457,2]
[376664821,1754077848562,-270.62088297,0.00020279,2]
[376664823,1754077848572,-460.0,0.00020551,2]
[376664825,1754077848582,-460.0,0.00020552,2]
[376664827,1754077848591,-460.0,0.00020825,2]
[376664829,1754077848601,-460.0,0.00020826,2]
[376664831,1754077848611,-460.0,0.000211,2]
[376664833,1754077848621,-287.84637239,0.00021101,2]
[376664835,1754077848631,-1665.88440359,0.00021101,2]
[376664837,1754077848640,-460.0,0.00021101,2]
[376664839,1754077848650,-460.0,0.00021101,2]
[376664841,1754077848660,-460.0,0.00021101,2]
[376664843,1754077848669,-460.0,0.00021101,2]
[376664845,1754077848679,-544.76,0.00021102,2]
[376664847,1754077848689,-460.0,0.00021102,2]
[376664849,1754077848699,-460.0,0.00021102,2]
[376664851,1754077848708,-460.0,0.00021102,2]
[376664853,1754077848719,-460.0,0.00021102,2]
[376664855,1754077848729,-460.0,0.00021102,2]
[376664857,1754077848739,-460.0,0.00021102,2]
[376664859,1754077848752,-460.0,0.00021103,2]
[376664861,1754077848762,-367.90061002,0.00021103,2]
[376664864,1754077848775,-92.09938998,0.00021103,2]
[376664866,1754077848785,-1210.85,0.00021103,2]
[376664868,1754077848796,-1265.33,0.00021103,2]
[376664870,1754077848806,-261.72744388,0.00021105,2]
[376664872,1754077848820,-460.0,0.00021105,2]
[376664874,1754077848830,-460.0,0.00021105,2]
[376664876,1754077848840,-460.0,0.00021105,2]
[376664878,1754077848850,-460.0,0.00021105,2]
[376664880,1754077848861,-460.0,0.00021105,2]
[376664882,1754077848871,-460.0,0.00021105,2]
[376664884,1754077848881,-460.0,0.00021105,2]
[376664886,1754077848892,-460.0,0.00021105,2]
[376664888,1754077848903,-462.0454725,0.00021105,2]
[376664890,1754077848914,-460.0,0.00021105,2]
[376664892,1754077848924,-460.0,0.00021105,2]
[376664895,1754077848940,-460.0,0.00021105,2]
[376664898,1754077848958,-460.0,0.00021105,2]
[376664900,1754077848969,-460.0,0.00021105,2]
[376664902,1754077848980,-336.14256286,0.00021105,2]
[376664904,1754077848992,-460.0,0.00021105,2]
[376664906,1754077849009,-460.0,0.00021106,2]
[376664923,1754077849163,-718.44,0.00021106,2]
[376664926,1754077849179,-460.0,0.00021106,2]
[376664928,1754077849188,-460.0,0.00021106,2]
[376664930,1754077849198,-486.24,0.00021106,2]
[376664931,1754077849208,-420.0,0.00021188,2]
[376664933,1754077849217,-3046.86910581,0.00021279,5]
[376664935,1754077849228,-501.3598288,0.000213,2]
[376664937,1754077849237,-202.15443124,0.000213,2]
[376664939,1754077849249,-501.18255358,0.000213,2]
[376664941,1754077849258,-200.0,0.0002135,2]
[376664943,1754077849268,-502.54733132,0.00021368,2]
[376664945,1754077849278,-1434.10066384,0.00021368,2]
[376664947,1754077849287,-470.2,0.00021373,2]
[376664949,1754077849298,-460.0,0.00021374,2]
[376664951,1754077849308,-460.0,0.00021374,2]
[376664953,1754077849317,-460.0,0.00021374,2]
[376664955,1754077849327,-618.71,0.00021374,2]
[376664957,1754077849336,-460.0,0.00021374,2]
[376664959,1754077849346,-460.0,0.00021374,2]
[376664961,1754077849355,-1217.92,0.00021375,2]
[376664963,1754077849365,-460.0,0.00021375,2]
[376664965,1754077849375,-460.0,0.00021375,2]
[376664967,1754077849385,-460.0,0.00021375,2]
[376664969,1754077849395,-460.0,0.00021375,2]
[376664971,1754077849404,-460.0,0.00021375,2]
[376664973,1754077849413,-460.0,0.00021375,2]
[376664975,1754077849423,-490.78,0.00021375,2]
[376664977,1754077849432,-460.0,0.00021375,2]
[376664979,1754077849441,-460.0,0.00021375,2]
[376664981,1754077849450,-460.0,0.00021375,2]
[376664983,1754077849459,-460.0,0.00021375,2]
[376664984,1754077849466,-460.0,0.00021376,2]
[376664986,1754077849475,-460.0,0.00021376,2]
[376664988,1754077849481,-460.0,0.00021376,2]
[376664990,1754077849489,-460.0,0.00021376,2]
[376664992,1754077849499,-460.0,0.00021376,2]
[376664994,1754077849506,-204.16,0.00021376,2]
[376664995,1754077849515,-460.0,0.00021377,2]
[376664997,1754077849526,-460.0,0.00021377,2]
[376664999,1754077849536,-1210.85,0.00021377,2]
[376665002,1754077849547,-1265.33,0.00021377,2]
[376665004,1754077849557,-460.0,0.00021379,2]
[376665005,1754077849567,-460.0,0.00021379,2]
[376665007,1754077849577,-460.0,0.00021379,2]
[376665009,1754077849586,-460.0,0.00021379,2]
[376665011,1754077849596,-460.0,0.00021379,2]
[376665013,1754077849605,-460.0,0.00021379,2]
[376665015,1754077849615,-460.0,0.00021379,2]
[376665017,1754077849624,-384.33018061,0.0002138,2]
[376665019,1754077849634,-718.44,0.0002138,2]
[376665021,1754077849643,-460.0,0.0002138,2]
[376665023,1754077849653,-460.0,0.0002138,2]
[376665025,1754077849662,-486.24,0.0002138,2]
[376665027,1754077849671,-500.7810748,0.0002146,2]
[376665029,1754077849681,-3046.86910581,0.00021555,5]
[376665031,1754077849690,-376.95717434,0.00021558,2]
[376665033,1754077849700,-470.2,0.00021647,2]
[376665035,1754077849710,-460.0,0.00021648,2]
[376665037,1754077849720,-460.0,0.00021648,2]
[376665039,1754077849729,-460.0,0.00021648,2]
[376665041,1754077849738,-618.71,0.00021648,2]
[376665043,1754077849752,-465.36,0.00021648,2]
[376665045,1754077849762,-400.62905223,0.00021648,2]
[376665047,1754077849771,-1217.92,0.00021649,2]
[376665048,1754077849781,-460.0,0.00021649,2]
[376665050,1754077849791,-460.0,0.00021649,2]
[376665052,1754077849802,-460.0,0.00021649,2]
[376665054,1754077849813,-460.0,0.00021649,2]
[376665056,1754077849824,-477.29,0.00021649,2]
[376665058,1754077849834,-460.0,0.00021649,2]
[376665060,1754077849844,-490.78,0.00021649,2]
[376665062,1754077849854,-460.0,0.00021649,2]
[376665064,1754077849864,-460.0,0.00021649,2]
[376665066,1754077849875,-460.0,0.00021649,2]
[376665068,1754077849885,-365.71,0.00021649,2]
[376665069,1754077849895,-460.0,0.0002165,2]
[376665071,1754077849905,-460.0,0.0002165,2]
[376665073,1754077849915,-460.0,0.0002165,2]
[376665075,1754077849925,-460.0,0.0002165,2]
[376665077,1754077849937,-460.0,0.0002165,2]
[376665079,1754077849947,-460.0,0.00021651,2]
[376665081,1754077849957,-460.0,0.00021651,2]
[376665083,1754077849967,-1210.85,0.00021651,2]
[376665085,1754077849977,-1265.33,0.00021651,2]
[376665087,1754077849988,-460.0,0.00021653,2]
[376665089,1754077849999,-718.44,0.00021654,2]
[376665091,1754077850010,-460.0,0.00021654,2]
[376665093,1754077850019,-460.0,0.00021654,2]
[376665095,1754077850028,-486.24,0.00021654,2]
[376665097,1754077850038,-200.0,0.00021788,15]
[376665099,1754077850047,-200.0,0.00021788,15]
[376665101,1754077850055,-200.0,0.00021788,15]
[376665103,1754077850065,-200.0,0.00021788,15]
[376665105,1754077850074,-320.0,0.00021788,15]
[376665107,1754077850083,-3046.86910581,0.00021831,6]
[376665109,1754077850092,-470.2,0.00021921,2]
[376665111,1754077850101,-460.0,0.00021922,2]
[376665113,1754077850111,-460.0,0.00021922,2]
[376665114,1754077850120,-460.0,0.00021922,2]
[376665116,1754077850129,-618.71,0.00021922,2]
[376665118,1754077850138,-1217.92,0.00021923,2]
[376665120,1754077850148,-460.0,0.00021923,2]
[376665122,1754077850157,-460.0,0.00021923,2]
[376665124,1754077850166,-460.0,0.00021923,2]
[376665126,1754077850175,-460.0,0.00021923,2]
[376665128,1754077850185,-460.0,0.00021923,2]
[376665130,1754077850194,-490.78,0.00021923,2]
[376665132,1754077850203,-460.0,0.00021923,2]
[376665134,1754077850212,-460.0,0.00021923,2]
[376665136,1754077850222,-460.0,0.00021923,2]
[376665138,1754077850232,-460.0,0.00021924,2]
[376665140,1754077850242,-460.0,0.00021924,2]
[376665142,1754077850253,-460.0,0.00021924,2]
[376665144,1754077850262,-460.0,0.00021924,2]
[376665146,1754077850272,-460.0,0.00021924,2]
[376665148,1754077850280,-460.0,0.00021925,2]
[376665150,1754077850290,-460.0,0.00021925,2]
[376665151,1754077850299,-1210.85,0.00021925,2]
[376665153,1754077850308,-1265.33,0.00021925,2]
[376665155,1754077850316,-718.44,0.00021928,2]
[376665157,1754077850325,-460.0,0.00021928,2]
[376665159,1754077850335,-460.0,0.00021928,2]
[376665161,1754077850345,-486.24,0.00021928,2]
[376665163,1754077850355,-14361.89,0.00022,2]
[376665165,1754077850365,-3178.78,0.00022,7]
[376665167,1754077850374,-521.05,0.00022,7]
[376665169,1754077850383,-1143.42,0.00022,7]
[376665171,1754077850392,-214.95,0.00022,2]
[376665173,1754077850402,-3046.86910581,0.00022107,6]
[376665175,1754077850411,-470.2,0.00022195,2]
[376665177,1754077850420,-460.0,0.00022196,2]
[376665179,1754077850429,-460.0,0.00022196,2]
[376665181,1754077850442,-460.0,0.00022196,2]
[376665183,1754077850452,-618.71,0.00022196,2]
[376665185,1754077850462,-1217.92,0.00022197,2]
[376665187,1754077850472,-460.0,0.00022197,2]
[376665189,1754077850482,-460.0,0.00022197,2]
[376665191,1754077850492,-460.0,0.00022197,2]
[376665193,1754077850504,-460.0,0.00022197,2]
[376665195,1754077850513,-460.0,0.00022197,2]
[376665197,1754077850523,-490.78,0.00022197,2]
[376665199,1754077850533,-460.0,0.00022197,2]
[376665201,1754077850543,-460.0,0.00022197,2]
[376665203,1754077850553,-460.0,0.00022197,2]
[376665205,1754077850562,-460.0,0.00022198,2]
[376665207,1754077850571,-460.0,0.00022198,2]
[376665209,1754077850580,-460.0,0.00022198,2]
[376665211,1754077850590,-460.0,0.00022198,2]
[376665213,1754077850599,-309.51,0.00022198,2]
[376665215,1754077850616,-460.0,0.00022199,2]
[376665217,1754077850627,-460.0,0.00022199,2]
[376665219,1754077850636,-1210.85,0.00022199,2]
[376665221,1754077850645,-1265.33,0.00022199,2]
[376665223,1754077850655,-718.44,0.00022202,2]
[376665225,1754077850663,-460.0,0.00022202,2]
[376665227,1754077850672,-460.0,0.00022202,2]
[376665228,1754077850682,-486.24,0.00022202,2]
[376665231,1754077850692,-469.747,0.00022269,2]
[376665232,1754077850701,-3046.86910581,0.00022383,7]
[376665234,1754077850711,-470.2,0.00022469,2]
[376665236,1754077850720,-460.0,0.0002247,2]
[376665238,1754077850729,-460.0,0.0002247,2]
[376665240,1754077850739,-460.0,0.0002247,2]
[376665242,1754077850750,-618.71,0.0002247,2]
[376665244,1754077850760,-1217.92,0.00022471,2]
[376665246,1754077850769,-460.0,0.00022471,2]
[376665248,1754077850779,-460.0,0.00022471,2]
[376665250,1754077850788,-460.0,0.00022471,2]
[376665252,1754077850798,-460.0,0.00022471,2]
[376665254,1754077850813,-460.0,0.00022471,2]
[376665256,1754077850823,-490.78,0.00022471,2]
[376665258,1754077850832,-460.0,0.00022471,2]
[376665260,1754077850842,-206.9,0.00022471,2]
[376665262,1754077850851,-460.0,0.00022471,2]
[376665264,1754077850860,-460.0,0.00022472,2]
[376665266,1754077850870,-460.0,0.00022472,2]
[376665268,1754077850879,-460.0,0.00022472,2]
[376665269,1754077850890,-460.0,0.00022472,2]
[376665270,1754077850899,-460.0,0.00022473,2]
[376665271,1754077850909,-460.0,0.00022473,2]
[376665272,1754077850920,-1210.85,0.00022473,2]
[376665273,1754077850930,-1265.33,0.00022473,2]
[376665274,1754077850940,-718.44,0.00022476,2]
[376665275,1754077850950,-460.0,0.00022476,2]
[376665276,1754077850959,-521.65,0.00022476,2]
[376665277,1754077850968,-486.24,0.00022476,2]
[376665278,1754077850978,-160.0,0.00022637,2]
[376665279,1754077850988,-216.22890603,0.00022637,2]
[376665280,1754077851000,-160.0,0.00022637,2]
[376665281,1754077851011,-160.0,0.00022637,2]
[376665282,1754077851020,-215.03686253,0.00022637,2]
[376665283,1754077851030,-160.0,0.00022638,2]
[376665284,1754077851039,-231.52694941,0.00022638,2]
[376665285,1754077851048,-160.0,0.00022638,2]
[376665286,1754077851058,-12644.26590849,0.00022638,2]
[376665287,1754077851067,-160.0,0.00022638,2]
[376665288,1754077851076,-460.76838597,0.00022638,2]
[376665289,1754077851086,-3046.86910581,0.00022659,7]
[376665290,1754077851095,-376.95717434,0.00022659,2]
[376665291,1754077851104,-12644.26590849,0.0002266,7]
[376665292,1754077851114,-160.0,0.0002266,7]
[376665293,1754077851123,-470.2,0.00022743,2]
[376665294,1754077851133,-460.0,0.00022744,2]
[376665295,1754077851142,-460.0,0.00022744,2]
[376665297,1754077851151,-460.0,0.00022744,2]
[376665299,1754077851160,-618.71,0.00022744,2]
[376665301,1754077851170,-1217.92,0.00022745,2]
[376665303,1754077851178,-460.0,0.00022745,2]
[376665305,1754077851187,-460.0,0.00022745,2]
[376665307,1754077851196,-460.0,0.00022745,2]
[376665309,1754077851206,-460.0,0.00022745,2]
[376665311,1754077851215,-460.0,0.00022745,2]
[376665312,1754077851224,-490.78,0.00022745,2]
[376665314,1754077851234,-460.0,0.00022745,2]
[376665316,1754077851243,-460.0,0.00022745,2]
[376665318,1754077851254,-460.0,0.00022746,2]
[376665320,1754077851263,-460.0,0.00022746,2]
[376665323,1754077851274,-460.0,0.00022746,2]
[376665325,1754077851284,-460.0,0.00022746,2]
[376665327,1754077851293,-393.43,0.00022747,2]
[376665329,1754077851303,-460.0,0.00022747,2]
[376665331,1754077851313,-1210.85,0.00022747,2]
[376665333,1754077851322,-1265.33,0.00022747,2]
[376665335,1754077851331,-718.44,0.0002275,2]
[376665337,1754077851341,-199.45866584,0.0002275,2]
[376665339,1754077851353,-486.24,0.0002275,2]
[376665341,1754077851362,-214.95,0.00022763,2]
[376665343,1754077851371,-3046.86910581,0.00022934,8]
[376665345,1754077851381,-160.0,0.00023,2]
[376665347,1754077851390,-160.0,0.00023,3]
[376665349,1754077851399,-216.22890603,0.00023,3]
[376665351,1754077851408,-470.2,0.00023017,2]
[376665352,1754077851417,-460.0,0.00023018,2]
[376665354,1754077851427,-460.0,0.00023018,2]
[376665356,1754077851436,-460.0,0.00023018,2]
[376665358,1754077851445,-618.71,0.00023018,2]
[376665360,1754077851455,-1217.92,0.00023019,2]
[376665363,1754077851466,-460.0,0.00023019,2]
[376665365,1754077851475,-460.0,0.00023019,2]
[376665367,1754077851485,-460.0,0.00023019,2]
[376665369,1754077851495,-460.0,0.00023019,2]
[376665371,1754077851506,-460.0,0.00023019,2]
[376665373,1754077851515,-490.78,0.00023019,2]
[376665375,1754077851524,-460.0,0.00023019,2]
[376665377,1754077851536,-460.0,0.00023019,2]
[376665379,1754077851545,-460.0,0.0002302,2]
[376665381,1754077851554,-460.0,0.0002302,2]
[376665383,1754077851563,-460.0,0.0002302,2]
[376665385,1754077851573,-460.0,0.0002302,2]
[376665386,1754077851582,-460.0,0.00023021,2]
[376665388,1754077851591,-1210.85,0.00023021,2]
[376665391,1754077851601,-1265.33,0.00023021,2]
[376665393,1754077851610,-718.44,0.00023024,2]